fUST/lending_fUST_20251003
["ID","MTS","AMOUNT","RATE_DAILY","PERIOD"]
[388878172,1759457732787,250.0,0.00018139,2]
[388878173,1759457732912,500.0,0.00018139,2]
[388878174,1759457733422,250.0,0.00018139,2]
[388878176,1759457754108,5000.0,0.00018011,2]
[388878179,1759457795956,-500.0,0.00018045,2]
[388878180,1759457795983,-500.0,0.00018045,2]
[388878181,1759457796013,-634.02,0.00018045,2]
[388878182,1759457796043,-500.0,0.00018071,2]
[388878183,1759457796070,-500.0,0.00018071,2]
[388878184,1759457796096,-698.52,0.00018071,2]
[388878185,1759457796121,-500.0,0.00018071,2]
[388878186,1759457796147,-300.0,0.00018073,2]
[388878187,1759457796174,-467.72,0.00018074,2]
[388878188,1759457796370,-799.49,0.00018074,2]
[388878189,1759457796397,-3503.44,0.00018074,2]
[388878190,1759457796440,-1394.15,0.00018074,2]
[388878191,1759457796467,-3002.53,0.00018074,2]
[388878192,1759457796493,-376.11,0.00018075,2]
[388878193,1759457796569,-454.43,0.00018075,2]
[388878194,1759457796597,-564.15,0.00018075,2]
[388878195,1759457796623,-1000.0,0.00018075,2]
[388878196,1759457796650,-500.0,0.00018075,2]
[388878197,1759457796676,-500.0,0.00018075,2]
[388878198,1759457796702,-214.93677283,0.00018075,2]
[388878199,1759457796732,-500.0,0.00018075,2]
[388878200,1759457796759,-500.0,0.00018075,2]
[388878201,1759457796880,-3463.26,0.00018075,2]
[388878202,1759457796907,-500.0,0.00018075,2]
[388878203,1759457796934,-883.38,0.00018075,2]
[388878204,1759457797066,-306.73,0.00018075,2]
[388878205,1759457797092,-500.0,0.00018075,2]
[388878206,1759457797119,-500.0,0.00018075,2]
[388878207,1759457797146,-532.36,0.00018075,2]
[388878208,1759457797172,-500.0,0.00018075,2]
[388878209,1759457797200,-500.0,0.00018075,2]
[388878210,1759457797227,-500.0,0.00018075,2]
[388878211,1759457797253,-1018.36,0.00018075,2]
[388878212,1759457797280,-500.0,0.00018075,2]
[388878213,1759457797581,-1022.1,0.00018075,2]
[388878214,1759457797607,-613.25706748,0.00018075,2]
[388878215,1759457797633,-500.0,0.00018075,2]
[388878216,1759457797660,-500.0,0.00018078,2]
[388878217,1759457797687,-500.0,0.00018078,2]
[388878218,1759457797718,-500.0,0.00018078,2]
[388878219,1759457797746,-500.0,0.00018078,2]
[388878220,1759457797774,-339.88619463,0.00018078,2]
[388878221,1759457797804,-500.0,0.00018078,2]
[388878222,1759457797979,-564.2,0.00018078,2]
[388878223,1759457798008,-500.0,0.00018078,2]
[388878224,1759457798037,-500.0,0.00018078,2]
[388878225,1759457798065,-500.0,0.00018078,2]
[388878226,1759457798092,-500.0,0.00018079,2]
[388878227,1759457798118,-500.0,0.00018079,2]
[388878228,1759457798146,-684.53,0.00018079,2]
[388878229,1759457798173,-500.0,0.00018079,2]
[388878230,1759457798201,-500.0,0.00018139,2]
[388878231,1759457798229,-250.0,0.00018139,2]
[388878232,1759457798307,-500.0,0.00018139,2]
[388878233,1759457798334,-250.0,0.00018139,2]
[388878234,1759457798362,-500.0,0.00018139,2]
[388878235,1759457798390,-500.0,0.00018139,2]
[388878236,1759457798416,-250.0,0.00018139,2]
[388878237,1759457798444,-500.0,0.00018139,2]
[388878238,1759457798470,-284.78970627,0.00018139,2]
[388878239,1759457798497,-500.0,0.00018139,2]
[388878240,1759457798527,-500.0,0.00018139,2]
[388878241,1759457798554,-500.0,0.00018139,2]
[388878242,1759457798582,-500.0,0.00018139,2]
[388878243,1759457798737,-500.0,0.00018139,2]
[388878244,1759457798767,-500.0,0.00018139,2]
[388878245,1759457798796,-500.0,0.00018139,2]
[388878246,1759457798827,-2204.12,0.00018149,2]
[388878247,1759457798855,-203.63769073,0.00018149,2]
[388878248,1759457798886,-358.59461854,0.00018149,2]
[388878249,1759457799891,-1467.30538146,0.00018149,2]
[388878250,1759457799917,-926.98,0.00018149,2]
[388878251,1759457799945,-500.0,0.00018149,2]
[388878252,1759457799975,-1263.43,0.00018149,2]
[388878253,1759457800002,-500.0,0.00018149,2]
[388878254,1759457800121,-521.61,0.00018071,2]
[388878255,1759457800148,-3288.56,0.00018149,2]
[388878256,1759457800176,-151.70491979,0.00018173,2]
[388878257,1759457800898,500.0,0.00018075,2]
[388878258,1759457802999,688.31,0.00018071,2]
[388878259,1759457803025,500.0,0.00018149,2]
[388878260,1759457803392,387.95016042,0.00018139,2]
[388878261,1759457803415,112.04983958,0.00018139,2]
[388878262,1759457803896,1042.18,0.00018074,2]
[388878263,1759457804004,500.0,0.00018071,2]
[388878264,1759457805884,500.0,0.00018075,2]
[388878266,1759457808192,884.06,0.00018074,2]
[388878267,1759457808458,500.0,0.00018078,2]
[388878268,1759457810421,552.01,0.00018075,2]
[388878269,1759457811493,506.39,0.00018079,2]
[388878270,1759457812344,1121.8,0.00018045,2]
[388878271,1759457812771,1132.35,0.00018149,2]
[388878272,1759457814135,2153.21,0.00018074,2]
[388878273,1759457815979,622.96,0.00018071,2]
[388878274,1759457816213,1318.56,0.00018078,2]
[388878275,1759457820425,593.13,0.00018079,2]
[388878276,1759457821602,1260.41,0.00018149,2]
[388878277,1759457822363,500.0,0.00018078,2]
[388878278,1759457822398,3551.74,0.00018069,2]
[388878279,1759457822419,10000.01,0.00018069,2]
[388878280,1759457822440,10000.01,0.00018069,2]
[388878281,1759457822462,10000.01,0.00018069,2]
[388878282,1759457822483,10000.01,0.00018069,2]
[388878283,1759457825237,594.0,0.00017954,2]
[388878284,1759457835399,594.0,0.00018001,2]
[388878286,1759457840703,594.0,0.00017803,2]
[388878303,1759457865418,312.0,0.00017876,2]
[388878304,1759457870008,13943.5250416,0.00017071,2]
[388878306,1759457874838,312.0,0.00017924,2]
[388878309,1759457907468,374.79896577,0.00017913,2]
[388878310,1759457954322,-594.0,0.00018013,2]
[388878311,1759457954355,-300.0,0.00018044,2]
[388878312,1759457954385,-1006.17,0.00018045,2]
[388878313,1759457954414,-1565.01,0.00018045,2]
[388878314,1759457954444,-1018.41,0.00018045,2]
[388878315,1759457954474,-500.0,0.00018045,2]
[388878316,1759457954728,-500.0,0.00018045,2]
[388878317,1759457954758,-3833.56,0.00018045,2]
[388878318,1759457956018,-1332.89,0.00018045,2]
[388878319,1759457956047,-1746.8,0.00018045,2]
[388878320,1759457956078,-500.0,0.00018045,2]
[388878321,1759457956108,-312.0,0.00018046,2]
[388878322,1759457956139,-312.0,0.00018049,2]
[388878323,1759457964203,-254.05513612,0.00018059,2]
[388878324,1759457964256,-10000.01,0.00018059,2]
[388878325,1759457968110,-10000.01,0.00018059,2]
[388878326,1759457972115,-1214.41,0.00018045,2]
[388878327,1759457972145,-3107.96703315,0.00018059,2]
[388878328,1759457972175,-426.7059337,0.00018059,3]
[388878329,1759457972231,-501.8440663,0.00018059,3]
[388878330,1759457978001,378.4449144,0.00017971,2]
[388878331,1759457985093,4689.5704291,0.00018011,2]
[388878332,1759458007784,9379.5602389,0.00017978,2]
[388878333,1759458009562,1286.8855808,0.00017071,2]
[388878334,1759458025246,160.0,0.00018,2]
[388878335,1759458026340,160.0,0.00018,2]
[388878336,1759458058530,160.0,0.00018,2]
[388878338,1759458105570,169.0,0.00017665,2]
[388878339,1759458114622,169.0,0.00017671,2]
[388878340,1759458128641,-169.0,0.00018025,2]
[388878341,1759458128668,-300.0,0.00018044,2]
[388878342,1759458128695,-2877.43,0.00018045,2]
[388878343,1759458128721,-998.75,0.00018045,2]
[388878344,1759458128813,-1309.65,0.00018045,2]
[388878345,1759458130547,-753.84,0.00018045,2]
[388878346,1759458130574,-1000.0,0.00018045,2]
[388878347,1759458130600,-859.93,0.00018045,2]
[388878348,1759458130629,-2279.79,0.00018045,2]
[388878349,1759458130655,-10.89,0.00018058,2]
[388878350,1759458130727,-191.11,0.00018058,2]
[388878351,1759458134577,-1200.0,0.00018058,2]
[388878352,1759458134607,-300.0,0.00018058,2]
[388878353,1759458134636,-500.0,0.00018058,2]
[388878354,1759458134664,-500.0,0.00018058,2]
[388878355,1759458134691,-500.0,0.00018058,2]
[388878356,1759458134718,-500.0,0.00018058,2]
[388878357,1759458134745,-1263.62,0.00018058,2]
[388878358,1759458134818,161.0,0.00018,2]
[388878359,1759458134902,-472.77,0.00018058,2]
[388878360,1759458136588,-27.23,0.00018058,2]
[388878361,1759458136618,-2214.36,0.00018058,2]
[388878362,1759458136646,-648.88,0.00018058,2]
[388878363,1759458136673,-646.75,0.00018058,2]
[388878364,1759458136701,-521.06,0.00018058,2]
[388878365,1759458136785,-1883.45,0.00018058,2]
[388878366,1759458146365,162.11720579,0.00018,2]
[388878367,1759458158702,5000.0,0.00018011,2]
[388878369,1759458163046,240.15816184,0.00017971,2]
[388878370,1759458169990,-240.15816184,0.00018041,2]
[388878371,1759458170018,-540.67,0.00018045,2]
[388878372,1759458170045,-548.24,0.00018058,2]
[388878373,1759458170072,-500.0,0.00018058,2]
[388878374,1759458170099,-1200.0,0.00018058,2]
[388878375,1759458170126,-500.0,0.00018058,2]
[388878376,1759458170155,-873.69367632,0.00018058,2]
[388878377,1759458170695,-1194.48632368,0.00018058,2]
[388878378,1759458170726,-1334.54,0.00018058,2]
[388878379,1759458170753,-2064.51,0.00018059,3]
[388878380,1759458170779,-1032.26,0.00018059,3]
[388878381,1759458170805,-516.13,0.00018059,3]
[388878382,1759458170855,-258.06,0.00018059,3]
[388878383,1759458170883,-774.21,0.00018059,3]
[388878384,1759458170914,-769.9,0.00018059,3]
[388878385,1759458170941,-500.0,0.00018068,2]
[388878386,1759458170967,-500.0,0.00018068,2]
[388878387,1759458170992,-801.53,0.00018068,2]
[388878388,1759458171021,-384.07671127,0.00018068,2]
[388878389,1759458171049,-218.19501862,0.00018068,2]
[388878390,1759458171076,-560.48034167,0.00018068,2]
[388878391,1759458171119,-500.0,0.00018068,2]
[388878392,1759458171146,-339.91644729,0.00018068,2]
[388878393,1759458171175,-500.0,0.00018068,2]
[388878394,1759458177260,561.77,0.00018058,2]
[388878395,1759458181078,5000.0,0.00018069,2]
[388878396,1759458182241,500.0,0.00018058,2]
[388878397,1759458182280,300.0,0.00018068,2]
[388878398,1759458185067,-3638.24,0.00018069,2]
[388878399,1759458185189,-10000.01,0.00018069,2]
[388878400,1759458185334,-10000.01,0.00018069,2]
[388878401,1759458185448,-10000.01,0.00018069,2]
[388878402,1759458185585,-10000.01,0.00018069,2]
[388878403,1759458185672,-10000.01,0.00018069,2]
[388878404,1759458185815,-10000.01,0.00018069,2]
[388878405,1759458185953,-10000.01,0.00018069,2]
[388878406,1759458186371,-10000.01,0.00018069,2]
[388878407,1759458186472,-10000.01,0.00018069,2]
[388878408,1759458186518,507.19,0.00018058,2]
[388878409,1759458190874,1711.98,0.00018058,2]
[388878412,1759458197491,500.0,0.00018058,2]
[388878413,1759458198546,583.51,0.00018068,2]
[388878414,1759458201236,500.0,0.00018068,2]
[388878415,1759458202203,534.88,0.00018068,2]
[388878416,1759458202351,246.27478973,0.00018068,2]
[388878417,1759458202390,330.32403385,0.00018068,2]
[388878418,1759458202704,1100.0,0.00018069,2]
[388878419,1759458203700,1065.4,0.00018058,2]
[388878420,1759458205405,3354.77,0.00018068,2]
[388878421,1759458218282,500.0,0.00018068,2]
[388878422,1759458220966,2112.28,0.00018058,2]
[388878423,1759458223645,500.0,0.00018021,2]
[388878425,1759458228545,500.0,0.00018013,2]
[388878426,1759458236251,888.35,0.00018058,2]
[388878427,1759458237093,-5065.06117642,0.00018069,2]
[388878428,1759458237140,-10000.01,0.00018069,2]
[388878429,1759458237154,-10000.01,0.00018069,2]
[388878430,1759458237185,-10000.01,0.00018069,2]
[388878431,1759458237347,-10000.01,0.00018069,2]
[388878432,1759458238498,-10000.01,0.00018069,2]
[388878433,1759458238632,-10000.01,0.00018069,2]
[388878434,1759458244536,-500.0,0.00018058,2]
[388878435,1759458244564,-300.0,0.00018068,2]
[388878436,1759458244590,-999.24,0.00018068,2]
[388878437,1759458244622,-500.0,0.00018068,2]
[388878438,1759458244650,-494.73554724,0.00018068,2]
[388878439,1759458244678,-500.0,0.00018068,2]
[388878440,1759458244708,-500.0,0.00018068,2]
[388878441,1759458244736,-500.0,0.00018068,2]
[388878442,1759458244767,-500.0,0.00018068,2]
[388878443,1759458244882,-500.0,0.00018068,2]
[388878444,1759458244913,-522.32963348,0.00018068,2]
[388878445,1759458247219,352.87,0.00018068,3]
[388878446,1759458252510,1000.98,0.00018058,2]
[388878447,1759458253329,500.0,0.00018058,2]
[388878448,1759458258266,435.07299752,0.00017971,2]
[388878512,1759458392821,512.0,0.00028767,120]
[388878514,1759458501345,180.11862138,0.0001797,2]
[388878515,1759458510120,168.0,0.00017658,2]
[388878517,1759458515246,168.0,0.00017497,2]
[388878521,1759458533440,6253.04015928,0.00017979,2]
[388878522,1759458538632,632.94364326,0.00017958,2]
[388878549,1759458632494,-300.0,0.00018056,2]
[388878551,1759458632504,-1200.0,0.00018056,2]
[388878553,1759458632514,-188.0,0.00018056,2]
[388878555,1759458632523,-1000.0,0.00018057,2]
[388878557,1759458632533,-247.72677345,0.00018057,2]
[388878559,1759458632542,-500.0,0.00018058,2]
[388878561,1759458632551,-951.78,0.00018058,2]
[388878562,1759458632561,-500.0,0.00018058,2]
[388878564,1759458632571,-500.0,0.00018058,2]
[388878566,1759458632580,-500.0,0.00018058,2]
[388878568,1759458632590,-669.42,0.00018058,2]
[388878570,1759458632599,-500.0,0.00018058,2]
[388878572,1759458632609,-597.01,0.00018058,2]
[388878574,1759458632618,-813.73,0.00018058,2]
[388878576,1759458632627,-501.59,0.00018058,2]
[388878578,1759458632637,-500.0,0.00018058,2]
[388878580,1759458632647,-659.63,0.00018058,2]
[388878582,1759458632656,-500.0,0.00018058,2]
[388878584,1759458632666,-1484.7,0.00018058,2]
[388878586,1759458632675,-500.0,0.00018058,2]
[388878588,1759458632684,-17.40710729,0.00018058,2]
[388878591,1759458632702,-482.59289271,0.00018058,2]
[388878593,1759458632711,-3100.72,0.00018058,2]
[388878595,1759458632720,-500.0,0.00018058,2]
[388878597,1759458632730,-692.09,0.00018058,2]
[388878599,1759458632739,-500.0,0.00018058,2]
[388878601,1759458632748,-500.0,0.00018058,2]
[388878603,1759458632758,-500.0,0.00018058,2]
[388878605,1759458632767,-1613.41,0.00018058,2]
[388878607,1759458632776,-500.0,0.00018058,2]
[388878609,1759458632785,-500.0,0.00018058,2]
[388878611,1759458632795,-500.0,0.00018058,2]
[388878613,1759458632804,-500.0,0.00018058,2]
[388878615,1759458632814,-995.5,0.00018058,2]
[388878617,1759458632823,-500.0,0.00018058,2]
[388878618,1759458632832,-1075.06,0.00018058,2]
[388878620,1759458632841,-500.0,0.00018058,2]
[388878622,1759458632851,-895.53,0.00018058,2]
[388878624,1759458632860,-964.25,0.00018058,2]
[388878626,1759458632869,-652.69,0.00018058,2]
[388878627,1759458632879,-500.0,0.00018058,2]
[388878628,1759458632888,-500.0,0.00018058,2]
[388878629,1759458632897,-500.0,0.00018058,2]
[388878630,1759458632907,-500.0,0.00018058,2]
[388878631,1759458632921,-500.0,0.00018058,2]
[388878632,1759458632931,-1499.8,0.00018058,2]
[388878634,1759458632940,-500.0,0.00018058,2]
[388878636,1759458632950,-500.0,0.00018058,2]
[388878638,1759458632962,-975.98,0.00018058,2]
[388878640,1759458632972,-500.0,0.00018058,2]
[388878642,1759458632981,-500.0,0.00018058,2]
[388878643,1759458632991,-500.0,0.00018058,2]
[388878645,1759458633000,-500.0,0.00018058,2]
[388878646,1759458633011,-500.0,0.00018058,2]
[388878647,1759458633021,-500.0,0.00018058,2]
[388878648,1759458633031,-503.60226358,0.00018058,2]
[388878650,1759458633041,-2114.45,0.00018058,2]
[388878651,1759458633050,-644.32,0.00018058,2]
[388878652,1759458633060,-4951.18,0.00018058,2]
[388878653,1759458633070,-1893.9,0.00018061,3]
[388878654,1759458633080,-946.95,0.00018061,3]
[388878655,1759458633091,-473.47,0.00018061,3]
[388878656,1759458633101,-236.74,0.00018061,3]
[388878657,1759458633110,-710.22,0.00018061,3]
[388878658,1759458633120,-180.11862138,0.00018063,2]
[388878659,1759458633129,-166.0,0.00018064,2]
[388878660,1759458633138,-500.0,0.00018064,2]
[388878661,1759458633148,-500.0,0.00018064,2]
[388878662,1759458633157,-500.0,0.00018064,2]
[388878663,1759458633167,-521.80748702,0.00018064,2]
[388878664,1759458633176,-519.85,0.00018067,2]
[388878665,1759458633186,-363.55449242,0.00018067,2]
[388878667,1759458633195,-1210.97,0.00018067,2]
[388878668,1759458633204,-500.0,0.00018067,2]
[388878670,1759458633214,-2122.1,0.00018067,2]
[388878671,1759458633224,-621.84,0.00018067,2]
[388878672,1759458633233,-768.13,0.00018067,2]
[388878673,1759458633243,-500.0,0.00018067,2]
[388878674,1759458633253,-500.0,0.00018067,2]
[388878675,1759458633263,-500.0,0.00018067,2]
[388878676,1759458633272,-247.03292609,0.00018067,2]
[388878677,1759458633282,-333.07911917,0.00018068,2]
[388878678,1759458633291,-500.0,0.00018068,2]
[388878679,1759458633301,-1416.5143134,0.00018068,2]
[388878680,1759458633310,-500.0,0.00018068,2]
[388878681,1759458633320,-500.0,0.00018068,2]
[388878682,1759458633329,-3214.99,0.00018068,2]
[388878683,1759458633339,-1982.01,0.00018068,2]
[388878684,1759458633349,-500.0,0.00018068,2]
[388878685,1759458633358,-1137.5087641,0.00018068,2]
[388878690,1759458638346,-500.0,0.00018057,2]
[388878691,1759458638356,-310.26984094,0.00018058,2]
[388878703,1759458640375,-189.73015906,0.00018058,2]
[388878704,1759458640384,-250.0,0.00018064,2]
[388878705,1759458640393,-136.86866452,0.00018068,2]
[388878706,1759458641170,-3264.57970328,0.00018068,2]
[388878707,1759458641180,-538.36,0.00018068,2]
[388878708,1759458641189,-500.0,0.00018068,2]
[388878709,1759458641199,-500.0,0.00018068,2]
[388878710,1759458641208,-500.0,0.00018068,2]
[388878711,1759458641217,-500.0,0.00018068,2]
[388878712,1759458641226,-1749.83,0.00018068,2]
[388878713,1759458641235,-1021.01,0.00018068,2]
[388878714,1759458641244,-852.43,0.00018068,2]
[388878715,1759458641253,-1210.78,0.00018068,2]
[388878716,1759458641262,-2024.27,0.00018068,2]
[388878717,1759458641272,-1645.31,0.00018068,2]
[388878718,1759458641281,-500.0,0.00018068,2]
[388878719,1759458641290,-3151.54,0.00018068,2]
[388878720,1759458641300,-500.0,0.00018068,2]
[388878721,1759458641309,-500.0,0.00018068,2]
[388878722,1759458641319,-715.4,0.00018068,2]
[388878723,1759458641328,-503.21908402,0.00018068,2]
[388878724,1759458641338,-1085.17,0.00018068,2]
[388878725,1759458641347,-1207.89,0.00018068,2]
[388878726,1759458641356,-1120.52,0.00018068,2]
[388878727,1759458641365,-608.15,0.00018068,2]
[388878728,1759458641374,-500.0,0.00018068,2]
[388878729,1759458641383,-575.08,0.00018068,2]
[388878730,1759458641391,-3163.17,0.00018068,2]
[388878731,1759458641401,-500.0,0.00018068,2]
[388878732,1759458641410,-1251.82,0.00018068,2]
[388878733,1759458641420,-2176.1,0.00018068,2]
[388878734,1759458641429,-500.0,0.00018068,2]
[388878735,1759458641439,-571.13,0.00018068,2]
[388878736,1759458641448,-500.0,0.00018068,2]
[388878737,1759458641458,-691.51,0.00018068,2]
[388878739,1759458641467,-500.0,0.00018068,2]
[388878740,1759458641476,-268.85369789,0.00018068,2]
[388878741,1759458641486,-188.19758852,0.00018068,2]
[388878742,1759458641496,-47456.81757194,0.00018069,2]
[388878743,1759458641505,-1484.06,0.00018071,2]
[388878744,1759458641514,-500.0,0.00018071,2]
[388878746,1759458641523,-500.0,0.00018071,2]
[388878748,1759458641534,-500.0,0.00018071,2]
[388878750,1759458641546,-1009.75,0.00018071,2]
[388878752,1759458641557,-500.0,0.00018071,2]
[388878754,1759458641566,-580.59,0.00018071,2]
[388878755,1759458641575,-500.0,0.00018071,2]
[388878757,1759458641586,-500.0,0.00018071,2]
[388878758,1759458641595,-500.0,0.00018071,2]
[388878759,1759458641605,-926.08,0.00018071,2]
[388878760,1759458641615,-682.49,0.00018071,2]
[388878761,1759458641624,-500.0,0.00018071,2]
[388878762,1759458641634,-500.0,0.00018071,2]
[388878763,1759458641643,-854.54,0.00018071,2]
[388878764,1759458641653,-500.0,0.00018071,2]
[388878765,1759458641662,-872.62,0.00018071,2]
[388878766,1759458641671,-500.0,0.00018071,2]
[388878767,1759458641680,-2056.18,0.00018071,2]
[388878769,1759458641691,-1281.57,0.00018071,2]
[388878770,1759458641701,-795.93,0.00018071,2]
[388878772,1759458641712,-1049.43,0.00018071,2]
[388878773,1759458641721,-500.0,0.00018071,2]
[388878774,1759458641730,-500.0,0.00018071,2]
[388878775,1759458641740,-975.92,0.00018071,2]
[388878776,1759458641749,-500.0,0.00018071,2]
[388878777,1759458641758,-500.0,0.00018071,2]
[388878778,1759458641767,-529.01,0.00018071,2]
[388878779,1759458641776,-717.38,0.00018071,2]
[388878780,1759458641786,-500.0,0.00018071,2]
[388878781,1759458641795,-500.0,0.00018071,2]
[388878782,1759458641804,-508.19,0.00018071,2]
[388878783,1759458641814,-821.33,0.00018071,2]
[388878784,1759458641823,-871.59,0.00018071,2]
[388878785,1759458641832,-737.08,0.00018071,2]
[388878786,1759458641842,-500.0,0.00018071,2]
[388878787,1759458641851,-790.32,0.00018071,2]
[388878788,1759458641861,-571.81,0.00018071,2]
[388878789,1759458641870,-500.0,0.00018071,2]
[388878790,1759458641878,-500.0,0.00018071,2]
[388878791,1759458641887,-1000.08,0.00018071,2]
[388878792,1759458641896,-636.18,0.00018071,2]
[388878793,1759458641905,-683.05,0.00018071,2]
[388878794,1759458641913,-909.6,0.00018071,2]
[388878795,1759458641922,-512.5916806,0.00018075,2]
[388878796,1759458641931,-422.34156583,0.00018075,2]
[388878797,1759458641940,-1027.47,0.00018075,2]
[388878798,1759458641948,-825.33,0.00018075,2]
[388878799,1759458641958,-500.0,0.00018075,2]
[388878800,1759458641970,-500.0,0.00018075,2]
[388878801,1759458641979,-500.0,0.00018075,2]
[388878802,1759458641988,-500.0,0.00018075,2]
[388878803,1759458641998,-500.0,0.00018075,2]
[388878804,1759458642009,-500.0,0.00018075,2]
[388878805,1759458642019,-500.0,0.00018075,2]
[388878806,1759458642028,-1309.15,0.00018075,2]
[388878807,1759458642037,-1028.65,0.00018075,2]
[388878808,1759458642048,-500.0,0.00018075,2]
[388878809,1759458642057,-500.0,0.00018075,2]
[388878810,1759458642066,-500.0,0.00018075,2]
[388878811,1759458642075,-500.0,0.00018075,2]
[388878812,1759458642084,-500.0,0.00018075,2]
[388878813,1759458642093,-500.0,0.00018075,2]
[388878814,1759458642102,-509.22,0.00018075,2]
[388878815,1759458642111,-500.0,0.00018075,2]
[388878816,1759458642119,-500.0,0.00018075,2]
[388878817,1759458642129,-520.0,0.00018075,3]
[388878818,1759458642138,-500.0,0.00018075,2]
[388878819,1759458642147,-500.0,0.00018075,2]
[388878820,1759458642156,-500.0,0.00018075,2]
[388878821,1759458642165,-500.0,0.00018075,2]
[388878822,1759458642173,-1003.38664897,0.00018075,2]
[388878823,1759458642182,-500.0,0.00018075,2]
[388878824,1759458642191,-518.66,0.00018075,2]
[388878825,1759458642200,-500.0,0.00018075,2]
[388878826,1759458642210,-502.21585842,0.00018075,2]
[388878827,1759458642221,-500.0,0.00018075,2]
[388878828,1759458642232,-595.51,0.00018075,2]
[388878829,1759458642243,-500.0,0.00018075,2]
[388878830,1759458642253,-500.0,0.00018075,2]
[388878831,1759458642263,-500.0,0.00018075,2]
[388878832,1759458642272,-500.0,0.00018075,2]
[388878833,1759458642281,-500.0,0.00018075,2]
[388878834,1759458642290,-522.2,0.00018075,2]
[388878835,1759458642299,-501.20475235,0.00018075,2]
[388878836,1759458642308,-616.93,0.00018075,2]
[388878837,1759458642318,-643.03757693,0.00018075,2]
[388878838,1759458642327,-500.0,0.00018075,2]
[388878839,1759458642337,-503.81573971,0.00018075,2]
[388878840,1759458642346,-502.79859526,0.00018075,2]
[388878841,1759458642355,-732.82,0.00018075,2]
[388878842,1759458642366,-675.96,0.00018075,2]
[388878843,1759458642376,-500.0,0.00018075,2]
[388878844,1759458642385,-500.0,0.00018075,2]
[388878845,1759458642395,-500.0,0.00018075,2]
[388878846,1759458642405,-832.72,0.00018075,2]
[388878847,1759458642414,-500.0,0.00018075,2]
[388878848,1759458642423,-502.1438772,0.00018075,2]
[388878849,1759458642432,-500.0,0.00018075,2]
[388878850,1759458642441,-500.0,0.00018075,2]
[388878851,1759458642451,-802.84,0.00018075,2]
[388878852,1759458642460,-659.15,0.00018075,2]
[388878853,1759458642469,-500.0,0.00018075,2]
[388878854,1759458642478,-502.71912394,0.00018075,2]
[388878855,1759458642487,-502.66275449,0.00018075,2]
[388878856,1759458642496,-500.0,0.00018075,2]
[388878857,1759458642505,-500.0,0.00018075,2]
[388878858,1759458642514,-500.0,0.00018075,2]
[388878859,1759458642523,-500.0,0.00018075,2]
[388878860,1759458642532,-500.0,0.00018075,2]
[388878861,1759458642540,-500.0,0.00018075,2]
[388878862,1759458642549,-500.0,0.00018075,2]
[388878863,1759458642558,-500.0,0.00018075,2]
[388878864,1759458642567,-242.38721892,0.00018075,2]
[388878865,1759458642577,-500.0,0.00018075,2]